fUST/lending_fUST_20251010
["ID","MTS","AMOUNT","RATE_DAILY","PERIOD"]
[390602453,1760101857568,-181.181145,0.0001863,2]
[390602454,1760101857578,-181.181145,0.0001863,2]
[390602455,1760101857588,-701.17,0.0001863,2]
[390602456,1760101857598,-500.0,0.0001863,2]
[390602457,1760101857607,-151.0,0.0001863,2]
[390602458,1760101857618,-500.0,0.0001863,2]
[390602459,1760101857627,-500.0,0.0001863,2]
[390602460,1760101857636,-597.8,0.0001863,2]
[390602461,1760101857645,-245.798995,0.0001863,2]
[390602462,1760101857655,-500.0,0.0001863,2]
[390602463,1760101857664,-1141.37,0.0001863,2]
[390602464,1760101857673,-529.31011234,0.0001863,2]
[390602465,1760101857683,-676.23,0.0001863,2]
[390602466,1760101857692,-2115.12320893,0.0001863,2]
[390602467,1760101857701,-500.0,0.0001863,2]
[390602468,1760101857710,-500.0,0.0001863,2]
[390602469,1760101857720,-5190.57473083,0.0001863,2]
[390602470,1760101857735,-1326.66510949,0.0001863,2]
[390602471,1760101857746,-9407.19035838,0.0001863,2]
[390602472,1760101857754,-500.0,0.0001863,2]
[390602473,1760101857764,-151.0,0.0001863,2]
[390602474,1760101857773,-151.0,0.0001863,2]
[390602475,1760101857782,-151.0,0.0001863,2]
[390602476,1760101857791,-151.0,0.0001863,2]
[390602477,1760101857800,-151.0,0.0001863,2]
[390602478,1760101857810,-1115.81,0.0001863,2]
[390602479,1760101857820,-500.0,0.0001863,2]
[390602480,1760101857829,-151.0,0.0001863,2]
[390602481,1760101857838,-500.0,0.0001863,2]
[390602482,1760101857847,-500.0,0.0001863,2]
[390602483,1760101857857,-500.0,0.0001863,2]
[390602484,1760101857867,-1241.99,0.0001863,2]
[390602485,1760101857876,-4732.41,0.0001863,2]
[390602486,1760101857885,-500.0,0.0001863,2]
[390602487,1760101857894,-785.88,0.0001863,2]
[390602488,1760101857903,-617.27,0.0001863,2]
[390602489,1760101857912,-500.0,0.0001863,2]
[390602490,1760101857922,-500.0,0.0001863,2]
[390602491,1760101857931,-1038.79233081,0.0001863,2]
[390602492,1760101858420,-308.81014421,0.00015674,2]
[390602493,1760101858430,-243.48564421,0.00016338,2]
[390602494,1760101858442,-585.13766919,0.0001863,2]
[390602495,1760101858453,-500.0,0.0001863,2]
[390602496,1760101858462,-434.02322344,0.0001863,2]
[390602497,1760101858473,-389.10136848,0.0001863,2]
[390602498,1760101858485,-315.98676429,0.0001863,2]
[390602499,1760101858500,-360.68864379,0.0001863,2]
[390602500,1760101858509,-1629.955145,0.0001863,2]
[390602501,1760101858520,-2149.34,0.0001863,2]
[390602502,1760101858529,-4543.44,0.0001863,2]
[390602503,1760101858538,-620.98,0.0001863,2]
[390602504,1760101858547,-500.0,0.0001863,2]
[390602505,1760101858556,-610.21,0.0001863,2]
[390602506,1760101858566,-1015.27,0.0001863,2]
[390602507,1760101858576,-607.2,0.0001863,2]
[390602508,1760101858585,-605.98,0.0001863,2]
[390602509,1760101858594,-502.18,0.0001863,2]
[390602510,1760101858604,-963.28,0.0001863,2]
[390602511,1760101858613,-5962.37,0.0001863,2]
[390602512,1760101858623,-623.9,0.0001863,2]
[390602513,1760101858634,-1758.04,0.0001863,2]
[390602514,1760101858643,-876.34,0.0001863,2]
[390602515,1760101858652,-590.43,0.0001863,2]
[390602516,1760101858662,-2545.7685864,0.0001863,2]
[390602517,1760101859068,-355.13166584,0.00016274,2]
[390602518,1760101859078,-81.2144337,0.00016438,2]
[390602572,1760102346321,1444.0,0.00026137,120]
[390602589,1760102524083,1743.68395247,0.00029407,120]
[390602600,1760102628471,340.826083,0.00015437,2]
[390602662,1760102914836,150.999999,0.0002,120]
[390602670,1760102965710,209.286298,0.00015437,2]
[390602732,1760103032408,-162.0,0.00015945,3]
[390602734,1760103032419,-287.12893248,0.00015945,2]
[390602735,1760103032436,-262.04162027,0.00016338,2]
[390602737,1760103032446,-1303.90934784,0.00016338,2]
[390602739,1760103032457,-300.0,0.00016435,2]
[390602741,1760103032467,-300.0,0.00016435,2]
[390602743,1760103032476,-300.0,0.00016435,2]
[390602745,1760103032487,-300.0,0.00016435,2]
[390602747,1760103032497,-1200.0,0.00016436,2]
[390602749,1760103032507,-300.0,0.00016436,2]
[390602751,1760103032518,-6605.98698216,0.00016437,2]
[390602753,1760103032527,-500.0,0.00016437,2]
[390602756,1760103032537,-500.0,0.00016437,2]
[390602760,1760103032546,-502.40649528,0.00016437,2]
[390602763,1760103032556,-500.0,0.00016437,2]
[390602765,1760103032565,-257.40211419,0.00016437,2]
[390602768,1760103032575,-635.7930823,0.00016437,2]
[390602770,1760103032584,-376.17053245,0.00016437,2]
[390602772,1760103032594,-500.0,0.00016437,2]
[390602774,1760103032604,-574.86613666,0.00016437,2]
[390602777,1760103032624,-174.98512629,0.00016437,2]
[390602779,1760103032635,-500.0,0.00016438,2]
[390602781,1760103032645,-506.15442407,0.00016438,2]
[390602782,1760103032655,-500.0,0.00016438,2]
[390602784,1760103032665,-500.0,0.00016438,2]
[390602786,1760103032678,-500.0,0.00016438,2]
[390602788,1760103032688,-500.0,0.00016438,2]
[390602790,1760103032698,-500.0,0.00016438,2]
[390602792,1760103032708,-594.34,0.00016438,2]
[390602794,1760103032719,-500.0,0.00016438,2]
[390602796,1760103032734,-500.0,0.00016438,2]
[390602798,1760103032745,-500.0,0.00016438,2]
[390602800,1760103032755,-500.0,0.00016438,2]
[390602802,1760103032766,-500.0,0.00016438,2]
[390602804,1760103032777,-500.0,0.00016438,2]
[390602806,1760103032787,-500.0,0.00016438,2]
[390602808,1760103032796,-500.0,0.00016438,2]
[390602810,1760103032806,-481.9587971,0.00016438,2]
[390602812,1760103032815,-500.0,0.00016438,2]
[390602814,1760103032825,-500.0,0.00016438,2]
[390602816,1760103032835,-500.0,0.00016438,2]
[390602818,1760103032845,-480.0,0.00016438,2]
[390602820,1760103032855,-173.745,0.00016438,2]
[390602822,1760103032865,-480.87648703,0.00016438,2]
[390602824,1760103032875,-500.0,0.00016438,2]
[390602826,1760103032885,-500.0,0.00016438,2]
[390602828,1760103032895,-500.0,0.00016438,2]
[390602830,1760103032904,-517.36172355,0.00016438,2]
[390602832,1760103032914,-500.0,0.00016438,2]
[390602834,1760103032924,-500.0,0.00016438,2]
[390602836,1760103032939,-500.0,0.00016438,2]
[390602838,1760103032952,-500.0,0.00016438,2]
[390602840,1760103032963,-500.0,0.00016438,2]
[390602842,1760103032975,-627.29964216,0.00016438,2]
[390602844,1760103032986,-467.12520212,0.00016438,2]
[390602846,1760103032995,-501.96365242,0.00016438,2]
[390602848,1760103033005,-500.0,0.00016438,2]
[390602850,1760103033015,-500.0,0.00016438,2]
[390602852,1760103033025,-500.0,0.00016438,2]
[390602854,1760103033035,-500.0,0.00016438,2]
[390602856,1760103033044,-500.0,0.00016438,2]
[390602858,1760103033056,-500.0,0.00016438,2]
[390602860,1760103033065,-489.02678644,0.00016438,2]
[390602862,1760103033075,-500.0,0.00016438,2]
[390602864,1760103033085,-599.91125735,0.00016438,2]
[390602866,1760103033095,-500.62256216,0.00016438,2]
[390602869,1760103033106,-494.38384467,0.00016438,2]
[390602871,1760103033116,-500.0,0.00016438,2]
[390602873,1760103033126,-500.0,0.00016438,2]
[390602874,1760103033137,-500.0,0.00016438,2]
[390602876,1760103033152,-500.0,0.00016438,2]
[390602878,1760103033163,-500.0,0.00016438,2]
[390602880,1760103033173,-500.0,0.00016438,2]
[390602882,1760103033192,-500.0,0.00016438,2]
[390602884,1760103033207,-500.0,0.00016438,2]
[390602886,1760103033216,-462.03460363,0.00016438,2]
[390602888,1760103033226,-500.0,0.00016438,2]
[390602890,1760103033236,-500.0,0.00016438,2]
[390602892,1760103033247,-500.0,0.00016438,2]
[390602894,1760103033256,-500.0,0.00016438,2]
[390602896,1760103033266,-500.0,0.00016438,2]
[390602898,1760103033275,-500.0,0.00016438,2]
[390602900,1760103033285,-607.91700275,0.00016438,2]
[390602902,1760103033294,-500.0,0.00016438,2]
[390602904,1760103033304,-500.0,0.00016438,2]
[390602906,1760103033313,-249.23815358,0.00016438,2]
[390602908,1760103033322,-500.0,0.00016438,2]
[390602910,1760103033331,-500.0,0.00016438,2]
[390602912,1760103033341,-500.0,0.00016438,2]
[390602914,1760103033351,-500.0,0.00016438,2]
[390602916,1760103033360,-166.28573359,0.00016438,2]
[390602918,1760103033370,-468.76,0.00016438,2]
[390602920,1760103033380,-500.0,0.00016438,2]
[390602922,1760103033389,-500.0,0.00016438,2]
[390602923,1760103033399,-500.0,0.00016438,2]
[390602925,1760103033408,-500.0,0.00016438,2]
[390602927,1760103033418,-500.0,0.00016438,2]
[390602929,1760103033431,-500.0,0.00016438,2]
[390602931,1760103033442,-525.46,0.00016438,2]
[390602933,1760103033451,-500.0,0.00016438,2]
[390602935,1760103033460,-188.56000202,0.00016438,2]
[390602937,1760103033469,-500.0,0.00016438,2]
[390602939,1760103033479,-282.09703335,0.00016438,2]
[390602941,1760103033489,-500.0,0.00016438,2]
[390602943,1760103033499,-500.0,0.00016438,2]
[390602945,1760103033509,-500.0,0.00016438,2]
[390602947,1760103033519,-500.0,0.00016438,2]
[390602949,1760103033528,-500.0,0.00016438,2]
[390602951,1760103033538,-500.0,0.00016438,2]
[390602953,1760103033548,-500.0,0.00016438,2]
[390602955,1760103033557,-500.0,0.00016438,2]
[390602957,1760103033566,-501.23123842,0.00016438,2]
[390602959,1760103033576,-500.0,0.00016438,2]
[390602961,1760103033585,-500.0,0.00016438,2]
[390602963,1760103033595,-500.0,0.00016438,2]
[390602965,1760103033604,-461.63971521,0.00016438,2]
[390602967,1760103033614,-500.0,0.00016438,2]
[390602969,1760103033623,-500.0,0.00016438,2]
[390602971,1760103033632,-500.0,0.00016438,2]
[390602973,1760103033642,-500.0,0.00016438,2]
[390602975,1760103033652,-500.0,0.00016438,2]
[390602977,1760103033661,-266.68126561,0.00016438,2]
[390602978,1760103033671,-500.0,0.00016438,2]
[390602980,1760103033685,-501.44,0.00016438,2]
[390602982,1760103033694,-715.64,0.00016438,2]
[390602984,1760103033704,-500.0,0.00016438,2]
[390602986,1760103033714,-802.89,0.00016438,2]
[390602988,1760103033723,-500.0,0.00016438,2]
[390602990,1760103033733,-249.56,0.00016438,2]
[390602992,1760103033743,-500.0,0.00016438,2]
[390602994,1760103033752,-697.52,0.00016438,2]
[390602996,1760103033761,-502.02249056,0.00016438,2]
[390602998,1760103033771,-500.0,0.00016438,2]
[390603000,1760103033780,-500.0,0.00016438,2]
[390603002,1760103033789,-501.63628169,0.00016438,2]
[390603004,1760103033799,-500.0,0.00016438,2]
[390603006,1760103033808,-271.24,0.00016438,2]
[390603008,1760103033818,-500.0,0.00016438,2]
[390603010,1760103033827,-500.0,0.00016438,2]
[390603012,1760103033837,-264.54,0.00016438,2]
[390603014,1760103033846,-820.89,0.00016438,2]
[390603016,1760103033856,-500.0,0.00016438,2]
[390603018,1760103033865,-501.45513019,0.00016438,2]
[390603020,1760103033875,-627.37,0.00016438,2]
[390603022,1760103033884,-815.19,0.00016438,2]
[390603024,1760103033894,-500.0,0.00016438,2]
[390603026,1760103033903,-500.0,0.00016438,2]
[390603028,1760103033913,-500.0,0.00016438,2]
[390603030,1760103033922,-500.0,0.00016438,2]
[390603031,1760103033934,-500.0,0.00016438,2]
[390603034,1760103033944,-3541.21,0.00016438,2]
[390603036,1760103033954,-500.0,0.00016438,2]
[390603038,1760103033963,-500.0,0.00016438,2]
[390603040,1760103033979,-1107.55,0.00016438,2]
[390603042,1760103033988,-500.0,0.00016438,2]
[390603043,1760103033997,-500.0,0.00016438,2]
[390603046,1760103034006,-500.0,0.00016438,2]
[390603047,1760103034017,-202.19325758,0.00016438,2]
[390603050,1760103034032,-426.97674242,0.00016438,2]
[390603052,1760103034042,-267.5749757,0.00016438,2]
[390603054,1760103034052,-500.0,0.00016438,2]
[390603056,1760103034061,-283.03059528,0.00016438,2]
[390603057,1760103034082,-216.96940472,0.00016438,2]
[390603058,1760103034091,-636.13,0.00016438,2]
[390603059,1760103034101,-271.13867582,0.00016438,2]
[390603060,1760103034109,-500.0,0.00016438,2]
[390603061,1760103034118,-500.53628959,0.00016438,2]
[390603062,1760103034127,-500.0,0.00016438,2]
[390603063,1760103034136,-500.0,0.00016438,2]
[390603064,1760103034145,-3218.27,0.00016438,2]
[390603065,1760103034154,-201.15,0.00016438,2]
[390603066,1760103034163,-500.0,0.00016438,2]
[390603067,1760103034172,-500.0,0.00016438,2]
[390603068,1760103034185,-7.62975567,0.00016438,2]
[390603069,1760103034197,-492.37024433,0.00016438,2]
[390603070,1760103034207,-500.0,0.00016438,2]
[390603071,1760103034215,-500.0,0.00016438,2]
[390603072,1760103034224,-4471.78,0.00016438,2]
[390603073,1760103034233,-500.0,0.00016438,2]
[390603074,1760103034243,-500.0,0.00016438,2]
[390603075,1760103034251,-500.0,0.00016438,2]
[390603076,1760103034260,-500.0,0.00016438,2]
[390603077,1760103034269,-500.0,0.00016438,2]
[390603078,1760103034278,-1163.99,0.00016438,2]
[390603079,1760103034288,-246.05984314,0.00016438,2]
[390603080,1760103034297,-500.0,0.00016438,2]
[390603081,1760103034307,-500.0,0.00016438,2]
[390603082,1760103034319,-500.0,0.00016438,2]
[390603083,1760103034333,-620.75,0.00016438,2]
[390603084,1760103034342,-581.23884342,0.00016438,2]
[390603104,1760103037192,10000.0,0.00024,30]
[390603128,1760103038208,-180.21115658,0.00016438,2]
[390603130,1760103038218,-903.78410038,0.00016438,2]
[390603136,1760103038264,-618.66589962,0.00016438,2]
[390603138,1760103038274,-382.33408628,0.00016438,2]
[390603140,1760103038286,-28.83030518,0.00016438,2]
[390603142,1760103038296,-436.67949802,0.00016438,2]
[390603144,1760103038308,-63.32050198,0.00016438,2]
[390603146,1760103038318,-203.47949802,0.00016438,2]
[390603148,1760103038330,-296.52050198,0.00016438,2]
[390603150,1760103038340,-155.76563946,0.00016438,2]
[390603153,1760103038351,-344.23436054,0.00016438,2]
[390603155,1760103038361,-16.50099472,0.00016438,2]
[390603368,1760103040333,-1410.60900528,0.00016438,2]
[390603371,1760103040342,-460.08539474,0.00016438,2]
[390603622,1760103043152,-39.91460526,0.00016438,2]
[390603624,1760103043162,-460.08539474,0.00016438,2]
[390603630,1760103043213,-39.91460526,0.00016438,2]
[390603632,1760103043223,-705.08539474,0.00016438,2]
[390603634,1760103043235,-1330.86460526,0.00016438,2]
[390603636,1760103043244,-165.96430918,0.00016438,2]
[390603937,1760103046402,-339.26734316,0.00016438,2]
[390603939,1760103046411,-500.0,0.00016438,2]
[390603941,1760103046421,-499.17671403,0.00016438,2]
[390603943,1760103046430,-181.0667701,0.00016438,2]
[390603945,1760103046441,-500.0,0.00016438,2]
[390603947,1760103046450,-500.0,0.00016438,2]
[390603949,1760103046460,-500.0,0.00016438,2]
[390603951,1760103046469,-500.0,0.00016438,2]
[390603953,1760103046478,-500.0,0.00016438,2]
[390603955,1760103046487,-500.0,0.00016438,2]
[390603957,1760103046496,-733.97,0.00016438,2]
[390603958,1760103046505,-683.43,0.00016438,2]
[390603960,1760103046514,-2797.05,0.00016438,2]
[390603962,1760103046524,-500.0,0.00016438,2]
[390603964,1760103046533,-677.94,0.00016438,2]
[390603966,1760103046542,-500.0,0.00016438,2]
[390603968,1760103046551,-500.0,0.00016438,2]
[390603970,1760103046560,-500.0,0.00016438,2]
[390603972,1760103046569,-500.0,0.00016438,2]
[390603974,1760103046578,-500.0,0.00016438,2]
[390603976,1760103046587,-500.0,0.00016438,2]
[390603979,1760103046597,-500.0,0.00016438,2]
[390603980,1760103046606,-500.0,0.00016438,2]
[390603983,1760103046615,-500.0,0.00016438,2]
[390603984,1760103046624,-311.80208414,0.00016438,2]
[390603987,1760103046640,-188.19791586,0.00016438,2]
[390603989,1760103046649,-200.45928157,0.00016438,2]
[390603991,1760103046660,-299.54071843,0.00016438,2]
[390603993,1760103046669,-77.13928157,0.00016438,2]
[390603995,1760103046680,-422.86071843,0.00016438,2]
[390603997,1760103046691,-500.0,0.00016438,2]
[390603999,1760103046699,-500.0,0.00016438,2]
[390604001,1760103046708,-500.0,0.00016438,2]
[390604003,1760103046717,-500.0,0.00016438,2]
[390604005,1760103046726,-2207.0,0.00016438,2]
[390604007,1760103046735,-580.56,0.00016438,2]
[390604009,1760103046744,-500.0,0.00016438,2]
[390604011,1760103046752,-500.0,0.00016438,2]
[390604013,1760103046762,-500.0,0.00016438,2]
[390604015,1760103046774,-500.0,0.00016438,2]
[390604017,1760103046783,-500.0,0.00016438,2]
[390604019,1760103046792,-500.0,0.00016438,2]
[390604021,1760103046801,-1247.15,0.00016438,2]
[390604023,1760103046810,-500.0,0.00016438,2]
[390604025,1760103046819,-500.58,0.00016438,2]
[390604027,1760103046828,-500.0,0.00016438,2]
[390604029,1760103046837,-195.54744213,0.00016438,2]
[390604031,1760103046847,-502.44828813,0.00016438,2]
[390604033,1760103046856,-500.0,0.00016438,2]
[390604035,1760103046865,-501.00529747,0.00016438,2]
[390604037,1760103046874,-500.0,0.00016438,2]
[390604038,1760103046883,-500.0,0.00016438,2]
[390604040,1760103046892,-501.61429026,0.00016438,2]
[390604042,1760103046901,-502.42,0.00016438,2]
[390604044,1760103046910,-500.0,0.00016438,2]
[390604046,1760103046919,-500.0,0.00016438,2]
[390604048,1760103046928,-502.14644805,0.00016438,2]
[390604050,1760103046937,-1096.96,0.00016438,2]
[390604052,1760103046949,-500.0,0.00016438,2]
[390604054,1760103046958,-500.0,0.00016438,2]
[390604056,1760103046967,-525.73,0.00016438,2]
[390604058,1760103046981,-500.0,0.00016438,2]
[390604060,1760103046990,-501.22383744,0.00016438,2]
[390604062,1760103046998,-1253.35,0.00016438,2]
[390604064,1760103047009,-500.0,0.00016438,2]
[390604066,1760103047019,-500.0,0.00016438,2]
[390604068,1760103047028,-201.93051172,0.00016438,2]
[390604070,1760103047037,-553.13,0.00016438,2]
[390604072,1760103047048,-500.0,0.00016438,2]
[390604074,1760103047058,-500.0,0.00016438,2]
[390604076,1760103047067,-500.0,0.00016438,2]
[390604078,1760103047077,-500.0,0.00016438,2]
[390604080,1760103047087,-500.0,0.00016438,2]
[390604082,1760103047096,-500.0,0.00016438,2]
[390604084,1760103047106,-503.01189571,0.00016438,2]
[390604086,1760103047116,-500.0,0.00016438,2]
[390604088,1760103047124,-500.0,0.00016438,2]
[390604090,1760103047134,-605.01,0.00016438,2]
[390604092,1760103047143,-500.0,0.00016438,2]
[390604094,1760103047152,-500.0,0.00016438,2]
[390604096,1760103047161,-501.36818589,0.00016438,2]
[390604098,1760103047170,-500.0,0.00016438,2]
[390604100,1760103047179,-500.0,0.00016438,2]
[390604102,1760103047188,-693.9,0.00016438,2]
[390604103,1760103047203,-500.0,0.00016438,2]
[390604105,1760103047212,-500.0,0.00016438,2]
[390604107,1760103047221,-500.0,0.00016438,2]
[390604109,1760103047231,-1419.29,0.00016438,2]
[390604111,1760103047242,-501.31270097,0.00016438,2]
[390604113,1760103047252,-500.0,0.00016438,2]
[390604115,1760103047262,-500.0,0.00016438,2]
[390604117,1760103047271,-500.0,0.00016438,2]
[390604119,1760103047280,-567.55,0.00016438,2]
[390604121,1760103047289,-500.0,0.00016438,2]
[390604123,1760103047298,-300.0,0.00016438,2]
[390604125,1760103047308,-500.0,0.00016438,2]
[390604127,1760103047317,-500.0,0.00016438,2]
[390604129,1760103047326,-534.12,0.00016438,2]
[390604131,1760103047336,-600.01,0.00016438,2]
[390604133,1760103047345,-500.0,0.00016438,2]
[390604135,1760103047354,-401.15176384,0.00016438,2]
[390604137,1760103047364,-931.01,0.00016438,2]
[390604139,1760103047373,-500.0,0.00016438,2]
[390604141,1760103047382,-500.0,0.00016438,2]
[390604143,1760103047392,-500.0,0.00016438,2]
[390604145,1760103047401,-500.0,0.00016438,2]
[390604147,1760103047410,-500.0,0.00016438,2]
[390604149,1760103047420,-500.0,0.00016438,2]
[390604151,1760103047430,-1082.62,0.00016438,2]
[390604153,1760103047439,-500.0,0.00016438,2]
[390604155,1760103047451,-500.0,0.00016438,2]
[390604157,1760103047460,-500.0,0.00016438,2]
[390604159,1760103047470,-584.28,0.00016438,2]
[390604161,1760103047479,-500.0,0.00016438,2]
[390604163,1760103047488,-500.0,0.00016438,2]
[390604165,1760103047497,-556.67,0.00016438,2]
[390604167,1760103047506,-500.0,0.00016438,2]
[390604169,1760103047515,-500.0,0.00016438,2]
[390604171,1760103047524,-500.0,0.00016438,2]
[390604173,1760103047533,-500.0,0.00016438,2]
[390604175,1760103047542,-500.0,0.00016438,2]
[390604177,1760103047551,-500.0,0.00016438,2]
[390604179,1760103047561,-1226.45,0.00016438,2]
[390604180,1760103047570,-500.0,0.00016438,2]
[390604182,1760103047578,-500.0,0.00016438,2]
[390604184,1760103047588,-500.0,0.00016438,2]
[390604186,1760103047597,-500.0,0.00016438,2]
[390604188,1760103047606,-215.2979259,0.00016438,2]
[390604190,1760103047615,-500.0,0.00016438,2]
[390604192,1760103047624,-500.0,0.00016438,2]
[390604194,1760103047633,-500.0,0.00016438,2]
[390604196,1760103047642,-500.0,0.00016438,2]
[390604198,1760103047651,-500.0,0.00016438,2]
[390604200,1760103047660,-500.0,0.00016438,2]
[390604202,1760103047669,-4694.88,0.00016438,2]
[390604221,1760103047846,-552.62,0.00016438,2]
[390604223,1760103047856,-500.0,0.00016438,2]
[390604225,1760103047866,-500.0,0.00016438,2]
[390604227,1760103047875,-1453.14,0.00016438,2]
[390604229,1760103047884,-500.0,0.00016438,2]
[390604231,1760103047893,-330.19827235,0.00016545,2]
[390604233,1760103047903,-9036.38458641,0.00016612,2]
[390604235,1760103047912,-500.0,0.00016711,2]
[390604237,1760103047922,-500.0,0.00016711,2]
[390604239,1760103047932,-500.0,0.00016711,2]
[390604241,1760103047944,-500.0,0.00016711,2]
[390604243,1760103047954,-166.25702855,0.00016711,2]
[390604245,1760103047964,-244.68433122,0.00016711,2]
[390604247,1760103047979,-500.0,0.00016712,2]
[390604249,1760103047989,-500.0,0.00016712,2]
[390604251,1760103047998,-202.9,0.00016712,2]
[390604253,1760103048009,-500.0,0.00016712,2]
[390604255,1760103048021,-500.0,0.00016712,2]
[390604257,1760103048031,-619.36079251,0.00016712,2]
[390604259,1760103048040,-500.0,0.00016712,2]
[390604261,1760103048053,-500.0,0.00016712,2]
[390604263,1760103048063,-500.0,0.00016712,2]
[390604265,1760103048073,-500.0,0.00016712,2]
[390604267,1760103048084,-302.88,0.00016712,2]
[390604269,1760103048095,-500.0,0.00016712,2]
[390604271,1760103048105,-500.0,0.00016712,2]
[390604273,1760103048114,-500.0,0.00016712,2]
[390604275,1760103048124,-500.0,0.00016712,2]
[390604277,1760103048134,-500.0,0.00016712,2]
[390604279,1760103048144,-500.0,0.00016712,2]
[390604281,1760103048154,-214.40794237,0.00016712,2]
[390604283,1760103048165,-500.0,0.00016712,2]
[390604285,1760103048174,-480.0,0.00016712,2]
[390604287,1760103048184,-500.0,0.00016712,2]
[390604289,1760103048197,-500.0,0.00016712,2]
[390604290,1760103048207,-500.0,0.00016712,2]
[390604292,1760103048217,-150.2,0.00016712,2]
[390604294,1760103048226,-525.46,0.00016712,2]
[390604296,1760103048236,-440.28487698,0.00016712,2]
[390604298,1760103048247,-199.38,0.00016712,2]
[390604300,1760103048256,-500.0,0.00016712,2]
[390604302,1760103048266,-500.0,0.00016712,2]
[390604304,1760103048276,-500.0,0.00016712,2]
[390604306,1760103048286,-500.0,0.00016712,2]
[390604309,1760103048296,-500.0,0.00016712,2]
[390604310,1760103048305,-497.21761261,0.00016712,2]
[390604312,1760103048314,-501.44,0.00016712,2]
[390604314,1760103048323,-715.64,0.00016712,2]
[390604316,1760103048333,-500.0,0.00016712,2]
[390604318,1760103048342,-802.89,0.00016712,2]
[390604320,1760103048351,-500.0,0.00016712,2]
[390604321,1760103048361,-500.0,0.00016712,2]
[390604322,1760103048370,-697.52,0.00016712,2]
[390604323,1760103048380,-500.0,0.00016712,2]
[390604324,1760103048389,-500.0,0.00016712,2]
[390604325,1760103048398,-820.89,0.00016712,2]
[390604326,1760103048407,-500.0,0.00016712,2]
[390604327,1760103048416,-627.37,0.00016712,2]
[390604328,1760103048425,-815.19,0.00016712,2]
[390604329,1760103048434,-500.0,0.00016712,2]
[390604331,1760103048447,-500.0,0.00016712,2]
[390604333,1760103048456,-500.0,0.00016712,2]
[390604335,1760103048466,-3541.21,0.00016712,2]
[390604337,1760103048476,-1107.55,0.00016712,2]
[390604339,1760103048486,-500.0,0.00016712,2]
[390604341,1760103048495,-500.0,0.00016712,2]
[390604343,1760103048504,-629.17,0.00016712,2]
[390604345,1760103048513,-500.0,0.00016712,2]
[390604347,1760103048522,-3218.27,0.00016712,2]
[390604349,1760103048531,-500.0,0.00016712,2]
[390604351,1760103048540,-500.0,0.00016712,2]
[390604353,1760103048549,-500.0,0.00016712,2]
[390604355,1760103048558,-500.0,0.00016712,2]
[390604357,1760103048568,-500.0,0.00016712,2]
[390604359,1760103048576,-500.0,0.00016712,2]
[390604361,1760103048585,-620.75,0.00016712,2]
[390604362,1760103048594,-761.45,0.00016712,2]
[390604364,1760103048603,-1522.45,0.00016712,2]
[390604366,1760103048612,-1427.11,0.00016712,2]
[390604369,1760103048622,-500.0,0.00016712,2]
[390604371,1760103048631,-837.71031125,0.00016712,2]
[390604570,1760103052688,3180.0,0.00024,30]
[390606417,1760103075366,300.0,0.000284,120]